bitfinex-derivatives/quotes_BTCF0:USTF0_20251011
["timestamp","ask_amount","ask_price","bid_price","bid_amount"]
[1760143202784,7.644e-05,112420.0,112410.0,0.29936344]
[1760143202984,0.36087644,112420.0,112410.0,0.29936344]
[1760143203184,7.644e-05,112420.0,112410.0,0.29936344]
[1760143203484,7.644e-05,112420.0,112410.0,1.06016344]
[1760143203795,7.644e-05,112420.0,112410.0,0.69936344]
[1760143204490,7.644e-05,112420.0,112410.0,0.29936344]
[1760143206491,0.92614644,112420.0,112410.0,0.17878024]
[1760143206789,0.92614644,112420.0,112410.0,0.1151932]
[1760143207291,0.92614644,112420.0,112410.0,0.2040464]
[1760143208490,0.92614644,112420.0,112410.0,0.1925432]
[1760143215192,0.92614644,112420.0,112410.0,0.20409595]
[1760143216192,0.92614644,112420.0,112410.0,0.25199712]
[1760143216992,0.76087644,112420.0,112410.0,0.28372712]
[1760143217291,7.644e-05,112420.0,112410.0,0.63582595]
[1760143217487,0.36087644,112420.0,112410.0,0.63582595]
[1760143217692,0.52849644,112420.0,112410.0,0.65199959]
[1760143218388,0.52849644,112420.0,112410.0,0.68372959]
[1760143218389,0.36087644,112420.0,112410.0,0.68372959]
[1760143218590,0.46659644,112420.0,112410.0,0.68372959]
[1760143218790,0.46659644,112420.0,112410.0,0.65199959]
[1760143219196,0.52849644,112420.0,112410.0,0.64044684]
[1760143219390,0.52849644,112420.0,112410.0,0.25199959]
[1760143219586,0.52849644,112420.0,112410.0,0.16314639]
[1760143220591,0.52849644,112420.0,112410.0,0.25199959]
[1760143220896,0.36087644,112420.0,112410.0,0.63582595]
[1760143221596,7.644e-05,112420.0,112410.0,1.04866024]
[1760143222091,7.644e-05,112420.0,112410.0,0.9850732]
[1760143222297,0.36087644,112420.0,112410.0,0.6242732]
[1760143222898,0.36087644,112420.0,112410.0,0.28786024]
[1760143223194,0.52849644,112420.0,112410.0,0.1925517]
[1760143223792,0.52849644,112420.0,112410.0,0.24045937]
[1760143223994,0.36087644,112420.0,112410.0,0.6242817]
[1760143224496,7.644e-05,112420.0,112410.0,0.6242817]
[1760143224696,0.3608,112440.0,112430.0,0.2373463]
[1760143224896,0.42462,112450.0,112440.0,0.0888384]
[1760143225200,0.78542,112450.0,112440.0,0.27689462]
[1760143225600,0.89114,112450.0,112440.0,0.27689462]
[1760143226002,0.89114,112450.0,112440.0,0.2289925]
[1760143226601,0.89123498,112450.0,112440.0,0.2289925]
[1760143226796,0.89223498,112450.0,112440.0,0.2289925]
[1760143227002,0.36289498,112450.0,112440.0,0.27320052]
[1760143227304,0.00209498,112450.0,112440.0,1.0499679]
[1760143228204,0.00209498,112450.0,112440.0,1.06133139]
[1760143228404,0.00109498,112450.0,112440.0,0.99760667]
[1760143228706,0.00109498,112450.0,112440.0,1.0613314]
[1760143228909,0.3608,112480.0,112470.0,0.24881517]
[1760143229199,0.4227,112500.0,112490.0,0.20852717]
[1760143229405,0.88922,112500.0,112490.0,0.23239223]
[1760143229605,0.88922,112500.0,112490.0,0.14359333]
[1760143230106,0.88922,112500.0,112490.0,0.23239223]
[1760143230301,0.7835,112500.0,112490.0,0.23239223]
[1760143230513,0.7216,112500.0,112490.0,0.26412223]
[1760143230714,0.7236,112500.0,112490.0,0.26412223]
[1760143231006,0.00206576,112500.0,112490.0,0.67207725]
[1760143231406,0.36286576,112500.0,112490.0,0.27207725]
[1760143231708,0.36486576,112500.0,112490.0,0.27207725]
[1760143232306,6.576e-05,112500.0,112490.0,0.27207725]
[1760143232701,0.36086576,112500.0,112490.0,0.27207725]
[1760143232902,6.576e-05,112500.0,112490.0,0.27207725]
[1760143233615,6.576e-05,112500.0,112490.0,0.67207725]
[1760143233911,0.3608,112530.0,112520.0,0.2372753]
[1760143234103,0.3608,112530.0,112520.0,0.26105487]
[1760143234310,0.3608,112540.0,112530.0,0.2287097]
[1760143235015,0.51142,112550.0,112540.0,0.1969795]
[1760143235309,0.7665,112550.0,112540.0,0.2462495]
[1760143235513,0.0449,112550.0,112540.0,0.6462495]
[1760143235716,0.0449,112550.0,112540.0,0.67002907]
[1760143236311,0.04500822,112550.0,112540.0,0.6462495]
[1760143236510,0.40680822,112550.0,112540.0,0.15749]
[1760143236717,0.40680822,112550.0,112540.0,0.1969795]
[1760143238015,0.97442822,112550.0,112540.0,0.10822]
[1760143238317,0.57442822,112550.0,112540.0,0.1969795]
[1760143238514,0.40580822,112550.0,112540.0,0.1969795]
[1760143239820,0.04500822,112550.0,112540.0,0.2407995]
[1760143240726,0.00078653,112570.0,112560.0,0.2279637]
[1760143241416,0.00078653,112570.0,112560.0,0.19882029]
[1760143241611,0.00087522,112570.0,112560.0,0.23910029]
[1760143242617,0.00187522,112570.0,112560.0,0.19882029]
[1760143242818,0.36267522,112570.0,112560.0,0.19882029]
[1760143243013,0.00187522,112570.0,112560.0,0.19882029]
[1760143243217,0.36267522,112570.0,112560.0,0.23910029]
[1760143243419,0.00187522,112570.0,112560.0,0.63910029]
[1760143244121,0.00187522,112570.0,112560.0,0.99990029]
[1760143244323,0.00187522,112570.0,112560.0,0.63910029]
[1760143244516,0.00187522,112570.0,112560.0,0.23910029]
[1760143244723,0.00087522,112570.0,112560.0,0.15035659]
[1760143244915,0.52473522,112570.0,112560.0,0.11007659]
[1760143245114,0.52473522,112570.0,112560.0,0.19882019]
[1760143245514,0.36167522,112570.0,112560.0,0.63910019]
[1760143245914,0.00087522,112570.0,112560.0,0.23910019]
[1760143246124,0.36167522,112570.0,112560.0,0.23910019]
[1760143246316,0.76167522,112570.0,112560.0,0.11007659]
[1760143246524,0.36167522,112570.0,112560.0,0.11007659]
[1760143247226,0.36167522,112570.0,112560.0,0.09894]
[1760143247423,0.92473522,112570.0,112560.0,0.09894]
[1760143248126,0.16306,112560.0,112550.0,0.09894]
[1760143248328,0.52386,112560.0,112550.0,0.09894]
[1760143249227,0.52386,112560.0,112550.0,0.1876915]
[1760143249530,0.3608,112560.0,112550.0,0.1876915]
[1760143249720,0.3608,112560.0,112550.0,0.2138715]
[1760143250623,0.45972,112560.0,112550.0,0.09894]
[1760143250823,0.85972,112560.0,112550.0,0.09894]
[1760143251024,0.92228,112560.0,112550.0,0.09894]
[1760143251329,0.16148,112550.0,112540.0,0.09834]
[1760143251622,0.52228,112550.0,112540.0,0.09834]
[1760143252023,0.92228,112550.0,112520.0,0.04028]
[1760143252228,0.88308,112530.0,112520.0,0.09834]
[1760143252624,0.06256,112510.0,112500.0,0.09834]
[1760143252825,0.16148,112500.0,112490.0,0.09834]
[1760143253021,0.52228,112500.0,112490.0,0.09834]
[1760143253324,0.52128,112500.0,112490.0,0.09834]
[1760143253525,0.92128,112500.0,112490.0,0.09834]
[1760143253837,0.16148,112490.0,112480.0,0.09834]
[1760143254025,0.06256,112480.0,112460.0,0.15651974]
[1760143254224,0.16148,112480.0,112470.0,0.19834682]
[1760143254528,0.52228,112480.0,112470.0,0.19834682]
[1760143256021,0.001,112480.0,112470.0,0.64930639]
[1760143256633,0.001,112480.0,112470.0,0.65723292]
[1760143256826,0.001,112480.0,112470.0,1.01803292]
[1760143257132,0.001,112480.0,112470.0,1.06576292]
[1760143257327,0.001,112480.0,112470.0,1.03405682]
[1760143257532,0.36088113,112500.0,112490.0,0.23006102]
[1760143257834,0.36088113,112500.0,112490.0,0.2538114]
[1760143259128,0.36188113,112500.0,112490.0,0.2220814]
[1760143259332,0.36188113,112500.0,112490.0,0.2220913]
[1760143259635,0.36288113,112500.0,112490.0,0.2220913]
[1760143260337,0.36288113,112500.0,112490.0,0.21089918]
[1760143261530,0.52436113,112500.0,112490.0,0.21089918]
[1760143262234,0.92436113,112500.0,112490.0,0.1871389]
[1760143262837,0.92436113,112500.0,112490.0,0.09834]
[1760143263026,0.92436113,112500.0,112490.0,0.1871389]
[1760143263430,0.92436113,112500.0,112480.0,0.02376028]
[1760143263632,0.52228,112490.0,112480.0,0.12210028]
[1760143264038,0.52228,112490.0,112480.0,0.02376028]
[1760143264330,0.16148,112480.0,112470.0,0.21091498]
[1760143264531,0.3608,112480.0,112470.0,0.2309747]
[1760143264735,0.42544113,112500.0,112480.0,0.1871365]
[1760143264935,0.36188113,112500.0,112490.0,0.1871346]
[1760143265743,0.36188113,112500.0,112490.0,0.2188646]
[1760143266139,0.36288113,112500.0,112490.0,0.2188646]
[1760143266437,0.36288113,112500.0,112490.0,0.23006782]
[1760143266835,0.36188113,112500.0,112490.0,0.23006782]
[1760143267034,0.36188113,112500.0,112490.0,0.19833782]
[1760143267436,0.00108113,112500.0,112490.0,1.04629528]
[1760143267635,0.00108113,112500.0,112490.0,1.070265]
[1760143268234,0.00208113,112500.0,112490.0,0.670265]
[1760143268436,0.00208113,112500.0,112490.0,0.261735]
[1760143269134,0.46519113,112500.0,112490.0,0.1412104]
[1760143269438,0.00208113,112500.0,112490.0,0.28226577]
[1760143269634,0.00208113,112500.0,112490.0,0.28226853]
[1760143269833,0.00208113,112500.0,112490.0,0.25060135]
[1760143270239,0.00208113,112500.0,112490.0,0.28226853]
[1760143270434,0.00208113,112500.0,112490.0,0.25060135]
[1760143270737,0.00208113,112500.0,112490.0,0.28226853]
[1760143270933,0.00208113,112500.0,112490.0,0.6585317]
[1760143271738,0.06256,112530.0,112520.0,0.09773]
[1760143271739,0.42336,112530.0,112520.0,0.09773]
[1760143271932,0.42336,112530.0,112520.0,0.10893322]
[1760143272332,0.3608,112530.0,112520.0,0.25653697]
[1760143272834,0.36087248,112530.0,112520.0,0.25653697]
[1760143273037,7.248e-05,112530.0,112520.0,0.98568172]
[1760143273244,0.00207248,112530.0,112520.0,1.0222085]
[1760143274942,0.00407248,112530.0,112520.0,1.0222085]
[1760143275943,0.41882,112560.0,112550.0,0.09773]
[1760143276146,0.52113,112560.0,112550.0,0.12149835]
[1760143277041,0.52423474,112560.0,112550.0,0.12149835]
[1760143277847,0.52623474,112560.0,112550.0,0.12149835]
[1760143278351,0.00510474,112560.0,112550.0,0.24844105]
[1760143278645,0.00510474,112560.0,112550.0,0.12942113]
[1760143278646,0.36590474,112560.0,112550.0,0.12942113]
[1760143279450,0.36590474,112560.0,112550.0,0.14066467]
[1760143279653,0.36290474,112560.0,112550.0,0.14066467]
[1760143280652,0.36090474,112560.0,112550.0,0.16445062]
[1760143281048,0.36090474,112560.0,112550.0,0.25319332]
[1760143281352,0.00010474,112560.0,112550.0,0.25319332]
[1760143281746,0.00010474,112560.0,112550.0,0.22940737]
[1760143282351,0.36090474,112560.0,112550.0,0.22940737]
[1760143282851,0.36081755,112560.0,112550.0,0.25318283]
[1760143283051,0.36081755,112560.0,112550.0,0.2214917]
[1760143283651,1.755e-05,112560.0,112550.0,0.6204917]
[1760143283952,1.755e-05,112560.0,112550.0,0.99671624]
[1760143284855,1.755e-05,112560.0,112550.0,1.06044097]
[1760143285246,0.00101755,112560.0,112550.0,0.99671624]
[1760143285455,0.00078653,112570.0,112560.0,0.2126348]
[1760143285656,0.00078653,112570.0,112560.0,0.62093738]
[1760143286854,0.00086023,112570.0,112560.0,0.62093738]
[1760143287054,0.10231,112590.0,112580.0,0.1864481]
[1760143287358,0.16033,112590.0,112580.0,0.21019405]
[1760143287655,0.92113,112590.0,112580.0,0.12147595]
[1760143288157,0.16033,112580.0,112570.0,0.12147595]
[1760143288354,0.92113,112580.0,112570.0,0.02374595]
[1760143288551,0.16033,112570.0,112550.0,0.05540722]
[1760143288756,0.52113,112560.0,112550.0,0.12147595]
[1760143289255,0.92113,112560.0,112550.0,0.12147595]
[1760143289750,0.92120429,112560.0,112550.0,0.21021855]
[1760143289946,0.92120429,112560.0,112550.0,0.12147595]
[1760143290253,1.28200429,112560.0,112550.0,0.12147595]
[1760143290755,1.28200429,112560.0,112550.0,0.21021855]
[1760143291754,1.28200429,112560.0,112550.0,0.09773]
[1760143292355,1.28200429,112560.0,112550.0,0.10884743]
[1760143293358,1.28200429,112560.0,112550.0,0.13260891]
[1760143293757,1.28200429,112560.0,112540.0,0.02376148]
[1760143294055,0.16033,112540.0,112530.0,0.02376148]
[1760143294254,0.52113,112540.0,112530.0,0.03487891]
[1760143294455,0.52113,112540.0,112530.0,0.10884743]
[1760143295056,0.52113,112540.0,112530.0,0.19760583]
[1760143295258,0.52113,112540.0,112530.0,0.13260891]
[1760143296858,0.92113,112540.0,112530.0,0.13260891]
[1760143298259,0.92113,112540.0,112530.0,0.12149148]
[1760143298452,0.92113,112540.0,112530.0,0.02376148]
[1760143298659,0.15538,112520.0,112510.0,0.23871315]
[1760143298857,0.51627659,112520.0,112510.0,0.20705188]
[1760143299053,0.91627659,112520.0,112510.0,0.11828148]
[1760143299265,1.27707659,112520.0,112510.0,0.02376148]
[1760143299662,0.06072,112510.0,112500.0,0.14994275]
[1760143299858,0.51618,112510.0,112500.0,0.12618127]
[1760143300054,0.51618,112510.0,112500.0,0.21496297]
[1760143300363,0.3608,112510.0,112500.0,0.21496297]
[1760143300963,0.42161659,112520.0,112500.0,0.21496297]
[1760143301265,0.51627659,112520.0,112510.0,0.11834792]
[1760143301766,0.36089659,112520.0,112510.0,0.1832942]
[1760143302259,0.36089659,112520.0,112510.0,0.2071195]
[1760143304768,9.659e-05,112520.0,112510.0,0.2453195]
[1760143304970,9.659e-05,112520.0,112510.0,0.25315547]
[1760143305169,9.659e-05,112520.0,112510.0,0.59351659]
[1760143305365,9.659e-05,112520.0,112510.0,0.23271659]
[1760143305572,0.51627659,112520.0,112510.0,0.10574239]
[1760143305768,0.51627659,112520.0,112510.0,0.12955534]
[1760143305974,0.51627659,112520.0,112510.0,0.21832954]
[1760143306177,0.91627659,112520.0,112510.0,0.03503534]
[1760143306681,0.51627659,112520.0,112510.0,0.12955534]
[1760143307171,0.51627659,112520.0,112510.0,0.13055534]
[1760143307572,0.51627659,112520.0,112510.0,0.21832954]
[1760143308571,9.659e-05,112520.0,112510.0,0.26929009]
[1760143308773,9.659e-05,112520.0,112510.0,0.60627714]
[1760143310479,0.15474659,112520.0,112510.0,0.22626714]
[1760143310783,0.51554659,112520.0,112510.0,0.13749294]
[1760143310976,0.51554659,112520.0,112510.0,0.12627055]
[1760143311181,0.51554659,112520.0,112510.0,0.15006983]
[1760143311371,0.51554659,112520.0,112510.0,0.21504475]
[1760143311578,0.15474659,112520.0,112510.0,0.23884245]
[1760143311777,0.15474659,112520.0,112510.0,0.57584475]
[1760143312172,9.659e-05,112520.0,112510.0,0.57584475]
[1760143312589,9.659e-05,112520.0,112510.0,0.59314475]
[1760143314584,9.659e-05,112520.0,112510.0,1.00901054]
[1760143315385,9.659e-05,112520.0,112510.0,0.9613942]
[1760143315579,0.41687,112560.0,112550.0,0.09624]
[1760143315580,0.51545,112560.0,112550.0,0.09624]
[1760143315979,0.51545,112560.0,112550.0,0.21673578]
[1760143316477,0.41687,112560.0,112550.0,0.21673578]
[1760143316677,0.41687,112580.0,112560.0,0.2111448]
[1760143316879,0.41687,112590.0,112570.0,0.1200637]
[1760143317180,0.3608,112580.0,112570.0,0.2087906]
[1760143317380,9.981e-05,112580.0,112570.0,0.21671998]
[1760143317574,9.981e-05,112580.0,112570.0,0.57751998]
[1760143317884,9.981e-05,112580.0,112570.0,1.03627026]
[1760143318183,9.981e-05,112580.0,112570.0,1.04746434]
[1760143321587,9.981e-05,112580.0,112570.0,0.68666434]
[1760143321794,9.981e-05,112580.0,112570.0,0.24379434]
[1760143322088,0.51554981,112580.0,112570.0,0.22790137]
[1760143322386,0.15474981,112580.0,112570.0,0.22790137]
[1760143322990,0.51554981,112580.0,112570.0,0.22790137]
[1760143323189,0.51554981,112580.0,112570.0,0.04293447]
[1760143323190,0.91554981,112580.0,112570.0,0.04293447]
[1760143323488,0.05607,112560.0,112550.0,0.02379806]
[1760143323691,0.87625,112560.0,112550.0,0.02379806]
[1760143323986,0.15465,112550.0,112540.0,0.16297253]
[1760143324182,0.51545,112550.0,112540.0,0.12003806]
[1760143324581,0.91545,112550.0,112530.0,0.02379806]
[1760143324785,0.91545,112550.0,112530.0,0.12003806]
[1760143324786,0.51545,112540.0,112530.0,0.12003806]
[1760143325288,0.51556011,112540.0,112530.0,0.12003806]
[1760143325588,0.45949011,112540.0,112530.0,0.20879646]
[1760143325788,0.51556011,112540.0,112530.0,0.21673879]
[1760143326088,0.91556011,112540.0,112530.0,0.21673879]
[1760143326280,0.00011011,112540.0,112530.0,0.25960879]
[1760143326594,0.00011011,112540.0,112530.0,1.03630176]
[1760143326884,0.36091011,112540.0,112530.0,0.2596021]
[1760143327089,0.45949011,112540.0,112530.0,0.1279737]
[1760143327284,0.51556011,112540.0,112530.0,0.1279737]
[1760143327682,0.36091011,112540.0,112530.0,0.2167321]
[1760143327881,0.00011011,112540.0,112530.0,0.5775321]
[1760143328094,0.00011011,112540.0,112530.0,0.57753235]
[1760143329183,0.00011011,112540.0,112530.0,0.63303176]
[1760143329583,0.00011011,112540.0,112530.0,1.03303176]
[1760143330289,0.00011011,112540.0,112530.0,1.04420972]
[1760143330488,0.41687,112570.0,112560.0,0.09376]
[1760143330790,0.41687,112570.0,112560.0,0.11756266]
[1760143331292,0.51086,112570.0,112560.0,0.11756266]
[1760143331691,0.51086,112570.0,112560.0,0.09376]
[1760143331892,0.51086,112570.0,112560.0,0.11756266]
[1760143332093,0.51186,112570.0,112560.0,0.11756266]
[1760143332295,0.15334,112560.0,112550.0,0.02380266]
[1760143332493,0.15334,112550.0,112540.0,0.02380266]
[1760143332689,0.51414,112550.0,112540.0,0.02380266]
[1760143332992,0.3608,112550.0,112540.0,0.11757333]
[1760143333496,0.42015,112560.0,112540.0,0.24592611]
[1760143333885,0.42015,112560.0,112550.0,0.11757571]
[1760143334091,0.05935,112560.0,112550.0,0.20631811]
[1760143334393,0.3608,112560.0,112550.0,0.11757571]
[1760143334588,0.51414,112560.0,112550.0,0.11757571]
[1760143334789,0.05935,112550.0,112540.0,0.14931259]
[1760143334993,0.51414,112550.0,112540.0,0.12549688]
[1760143335385,0.51414,112550.0,112540.0,0.14931657]
[1760143335891,0.3608,112550.0,112540.0,0.21424718]
[1760143336086,0.3608,112550.0,112540.0,0.25244718]
[1760143336297,0.3608,112550.0,112540.0,0.56369688]
[1760143338090,0.42015,112560.0,112540.0,0.56369688]
[1760143338294,0.51414,112560.0,112550.0,0.11759212]
[1760143339494,0.51414,112560.0,112550.0,0.11760209]
[1760143340788,0.91414,112560.0,112550.0,0.02384209]
[1760143342196,0.91514,112560.0,112550.0,0.02384209]
[1760143342494,0.91514,112560.0,112540.0,0.02384209]
[1760143342691,0.91514,112560.0,112530.0,0.02386019]
[1760143342692,0.15334,112540.0,112530.0,0.02386019]
[1760143342891,0.51423958,112540.0,112530.0,0.02386019]
[1760143343091,0.91423958,112540.0,112530.0,0.02386019]
[1760143343292,0.51423958,112540.0,112530.0,0.20637799]
[1760143343498,9.958e-05,112540.0,112530.0,0.5815178]
[1760143344299,9.958e-05,112540.0,112530.0,0.9815178]
[1760143344499,9.958e-05,112540.0,112530.0,0.66844334]
[1760143344694,9.958e-05,112540.0,112530.0,0.14148554]
[1760143344900,9.958e-05,112540.0,112530.0,0.17968554]
[1760143345103,9.958e-05,112540.0,112530.0,0.14148554]
[1760143345402,0.15343958,112540.0,112530.0,0.14148554]
[1760143346207,0.51423958,112540.0,112530.0,0.14148554]
[1760143346504,0.51423958,112540.0,112530.0,0.12558306]
[1760143347707,0.91423958,112540.0,112530.0,0.02386924]
[1760143348200,0.42024958,112540.0,112530.0,0.11762924]
[1760143348503,0.36089958,112540.0,112530.0,0.12558306]
[1760143350001,0.51423958,112540.0,112530.0,0.12558306]
[1760143350804,0.51423958,112540.0,112530.0,0.14946809]
[1760143351415,0.51423958,112540.0,112530.0,0.12558306]
[1760143351803,0.91423958,112540.0,112530.0,0.03182306]
[1760143353008,0.51423958,112540.0,112530.0,0.14148554]
[1760143353304,0.51423958,112540.0,112530.0,0.54148554]
[1760143353305,0.36089958,112540.0,112530.0,0.54148554]
[1760143353505,9.958e-05,112540.0,112530.0,0.54148554]
[1760143353709,0.36089958,112540.0,112530.0,0.14148554]
[1760143353910,0.51423958,112540.0,112530.0,0.14148554]
[1760143354608,0.15343958,112540.0,112530.0,0.14148554]
[1760143355004,9.958e-05,112540.0,112530.0,0.14148554]
[1760143355205,9.958e-05,112540.0,112530.0,0.54148554]
[1760143355409,9.958e-05,112540.0,112530.0,0.5825174]
[1760143355808,9.958e-05,112540.0,112530.0,0.5997074]
[1760143356212,9.958e-05,112540.0,112530.0,0.61083593]
[1760143356411,9.958e-05,112540.0,112530.0,0.97163593]
[1760143360117,0.3608,112570.0,112560.0,0.22779223]
[1760143360319,0.3608,112580.0,112560.0,0.58859223]
[1760143360618,0.42015,112590.0,112570.0,0.24255778]
[1760143360815,0.51387,112590.0,112580.0,0.09492]
[1760143361117,0.51387,112590.0,112580.0,0.12677875]
[1760143362117,0.15407,112590.0,112580.0,0.14271005]
[1760143362412,0.15415635,112590.0,112580.0,0.17453125]
[1760143362619,0.15415635,112590.0,112580.0,0.14271005]
[1760143363114,0.06043635,112590.0,112580.0,0.14271005]
[1760143363314,0.00108635,112590.0,112580.0,0.25504442]
[1760143363513,0.00108635,112590.0,112580.0,0.21544442]
[1760143364114,0.00108635,112590.0,112580.0,0.62403447]
[1760143364313,0.00108635,112590.0,112580.0,1.03182845]
[1760143365019,0.00108635,112590.0,112580.0,1.03171498]
[1760143365212,0.00108635,112590.0,112580.0,0.9840384]
[1760143365408,0.00108635,112590.0,112580.0,1.03168635]
[1760143365918,0.00108635,112590.0,112580.0,0.9850384]
[1760143366114,0.00108635,112590.0,112580.0,1.04879403]
[1760143366318,0.00108635,112590.0,112580.0,0.9840384]
[1760143366519,0.41881,112620.0,112610.0,0.09492]
[1760143366716,0.41881,112620.0,112610.0,0.11872602]
[1760143367519,0.41890441,112620.0,112610.0,0.11872602]
[1760143368020,0.51262441,112620.0,112610.0,0.11872602]
[1760143369219,0.41890441,112620.0,112610.0,0.12982623]
[1760143370116,0.36089441,112620.0,112610.0,0.12982623]
[1760143370512,0.90821441,112620.0,112610.0,0.12982623]
[1760143370717,0.90821441,112620.0,112610.0,0.01110021]
[1760143370916,0.90821441,112620.0,112610.0,0.12848623]
[1760143371220,0.90821441,112620.0,112610.0,0.01110021]
[1760143371416,0.90821441,112620.0,112610.0,0.10468021]
[1760143371614,0.50821441,112620.0,112610.0,0.12848623]
[1760143372117,0.36089441,112620.0,112610.0,0.23436913]
[1760143372315,9.441e-05,112620.0,112610.0,0.99516913]
[1760143372510,9.441e-05,112620.0,112610.0,0.13642157]
[1760143372712,0.05517441,112620.0,112610.0,0.12841771]
[1760143373022,0.50821441,112620.0,112610.0,0.15075669]
[1760143375319,0.50821441,112620.0,112610.0,0.13965648]
[1760143376925,0.14741441,112620.0,112610.0,0.13965648]
[1760143377121,0.14741441,112620.0,112610.0,0.22834938]
[1760143377122,0.41597441,112620.0,112610.0,0.22834938]
[1760143377426,9.441e-05,112620.0,112610.0,1.03016324]
[1760143377826,9.441e-05,112620.0,112610.0,0.66936324]
[1760143378722,9.441e-05,112620.0,112610.0,1.03016324]
[1760143378929,9.441e-05,112620.0,112610.0,0.66936324]
[1760143379427,9.441e-05,112620.0,112610.0,1.04603392]
[1760143380822,9.441e-05,112620.0,112610.0,0.68523392]
[1760143381226,9.441e-05,112620.0,112610.0,1.04603392]
[1760143381825,0.3608,112640.0,112630.0,0.1116471]
[1760143382024,0.50812,112650.0,112640.0,0.09358]
[1760143382329,0.50812,112650.0,112640.0,0.15058826]
[1760143382726,0.90812,112650.0,112640.0,0.15058826]
[1760143383930,0.90818267,112650.0,112640.0,0.15058826]
[1760143384836,0.36086267,112650.0,112640.0,0.29387361]
[1760143385040,0.36086267,112650.0,112640.0,0.6467633]
[1760143385041,6.267e-05,112650.0,112640.0,0.6467633]
[1760143385537,6.267e-05,112650.0,112640.0,0.99929423]
[1760143386134,6.267e-05,112650.0,112640.0,0.12685493]
[1760143386135,0.14738267,112650.0,112640.0,0.12685493]
[1760143386436,0.50818267,112650.0,112640.0,0.12685493]
[1760143386737,0.50818267,112650.0,112640.0,0.15852867]
[1760143387134,0.99684477,112650.0,112640.0,0.06494867]
[1760143387333,0.99684477,112650.0,112640.0,0.02233898]
[1760143388140,0.90818267,112650.0,112640.0,0.02233898]
[1760143388446,0.15106,112640.0,112630.0,0.12355374]
[1760143388643,0.51186,112640.0,112630.0,0.21223164]
[1760143388940,6.267e-05,112650.0,112640.0,0.18055]
[1760143389131,6.267e-05,112650.0,112640.0,0.23452424]
[1760143389327,0.36086267,112650.0,112640.0,0.25031133]
[1760143389639,6.267e-05,112650.0,112640.0,0.67328133]
[1760143390434,6.267e-05,112650.0,112640.0,0.62577749]
[1760143390829,6.267e-05,112650.0,112640.0,1.05033312]
[1760143392242,6.267e-05,112650.0,112640.0,0.28953312]
[1760143392440,6.267e-05,112650.0,112640.0,0.65033312]
[1760143393036,6.267e-05,112650.0,112640.0,0.58657749]
[1760143395441,6.267e-05,112650.0,112640.0,0.59741168]
[1760143395837,6.267e-05,112650.0,112640.0,1.06116731]
[1760143396541,6.267e-05,112650.0,112640.0,1.06216731]
[1760143396943,0.41541,112680.0,112660.0,0.09188]
[1760143397246,0.15106,112670.0,112660.0,0.53338987]
[1760143397945,0.15106,112670.0,112660.0,0.62204507]
[1760143398243,0.05461,112670.0,112660.0,0.62204507]
[1760143398948,8.101e-05,112670.0,112660.0,0.95241688]
[1760143399147,8.101e-05,112670.0,112660.0,1.41617251]
[1760143399347,0.41541,112710.0,112690.0,0.19134549]
[1760143399652,0.41541,112710.0,112700.0,0.1236037]
[1760143399946,0.51186,112710.0,112700.0,0.23448469]
[1760143400142,0.3608,112710.0,112700.0,0.25167469]
[1760143400348,0.36087104,112710.0,112700.0,0.25167469]
[1760143400548,0.36087104,112710.0,112700.0,0.26753655]
[1760143401249,0.36087104,112710.0,112700.0,0.61995099]
[1760143401645,0.36087104,112710.0,112700.0,0.66753655]
[1760143402250,0.36087104,112710.0,112700.0,0.61995099]
[1760143402551,0.36087104,112710.0,112700.0,0.66753655]
[1760143403358,7.104e-05,112710.0,112700.0,1.02833655]
[1760143403544,7.104e-05,112710.0,112700.0,0.98075099]
[1760143405746,7.104e-05,112710.0,112700.0,0.98175099]
[1760143406149,7.104e-05,112710.0,112700.0,1.02920786]
[1760143406342,7.104e-05,112710.0,112700.0,0.98075099]
[1760143407242,7.104e-05,112710.0,112700.0,1.02820783]
[1760143407549,0.55113104,112710.0,112700.0,0.16160428]
[1760143407854,0.40007104,112710.0,112700.0,0.65170277]
[1760143408150,0.40007104,112710.0,112700.0,0.29090277]
[1760143408551,0.40007104,112710.0,112700.0,0.65170277]
[1760143408943,0.15113104,112710.0,112700.0,0.62169277]
[1760143409142,0.15113104,112710.0,112700.0,0.17226837]
[1760143409143,0.55113104,112710.0,112700.0,0.17226837]
[1760143409348,0.91193104,112710.0,112700.0,0.0539024]
[1760143409550,0.91193104,112710.0,112700.0,0.06456649]
[1760143409852,0.91193104,112710.0,112700.0,0.0539024]
[1760143410252,0.91193104,112710.0,112700.0,0.06456649]
[1760143411950,0.91193104,112710.0,112700.0,0.05666652]
[1760143412652,0.91193104,112710.0,112700.0,0.04600243]
[1760143412847,1.42326669,112710.0,112700.0,0.04600243]
[1760143413052,0.15106,112690.0,112680.0,0.01066652]
[1760143413254,0.51186,112690.0,112680.0,0.01066652]
[1760143413454,0.15106,112670.0,112660.0,0.042309]
[1760143413652,0.51196103,112670.0,112660.0,0.042309]
[1760143414054,0.51196103,112670.0,112660.0,0.134189]
[1760143414255,0.51196103,112670.0,112660.0,0.21218081]
[1760143414948,0.51196103,112670.0,112660.0,0.21418081]
[1760143415355,0.00010103,112670.0,112660.0,0.63010081]
[1760143415556,0.00010103,112670.0,112660.0,1.04592269]
[1760143415751,0.00010103,112670.0,112660.0,0.9984559]
[1760143415951,0.00010103,112670.0,112660.0,0.5984559]
[1760143416656,3e-08,112670.0,112660.0,0.9984559]
[1760143417853,3e-08,112670.0,112660.0,0.9974559]
[1760143418357,0.05461,112710.0,112700.0,0.1861345]
[1760143418551,0.41541,112720.0,112700.0,0.57864645]
[1760143419057,0.41541,112720.0,112710.0,0.1861266]
[1760143419058,0.5067,112720.0,112710.0,0.1861266]
[1760143419253,0.1459,112720.0,112710.0,0.57863855]
[1760143419456,0.14597108,112720.0,112710.0,0.57863855]
[1760143419750,0.14597108,112720.0,112710.0,0.21783855]
[1760143420159,0.09136108,112720.0,112710.0,0.21783855]
[1760143420356,0.14972108,112720.0,112710.0,0.22857904]
[1760143420548,0.91052108,112720.0,112710.0,0.04245244]
[1760143420951,0.91052108,112720.0,112710.0,0.03171195]
[1760143422059,0.14972108,112720.0,112710.0,0.21783855]
[1760143422251,0.14972108,112720.0,112710.0,0.1861266]
[1760143422553,0.14972108,112720.0,112710.0,0.5469266]
[1760143422751,7.108e-05,112720.0,112710.0,0.59449453]
[1760143424752,7.108e-05,112720.0,112710.0,0.63400453]
[1760143425050,7.108e-05,112720.0,112710.0,0.65650611]
[1760143425453,7.108e-05,112720.0,112710.0,0.60893818]
[1760143426446,0.09136108,112720.0,112710.0,0.67236209]
[1760143426651,0.09136108,112720.0,112710.0,0.56942818]
[1760143428956,0.14972108,112720.0,112710.0,0.56942818]
[1760143430054,0.51052108,112720.0,112710.0,0.16767645]
[1760143430253,0.14972108,112720.0,112710.0,0.16767645]
[1760143430453,0.51052108,112720.0,112710.0,0.16767645]
[1760143431160,0.14972108,112720.0,112710.0,0.25629315]
[1760143432956,0.54972108,112720.0,112710.0,0.25629315]
[1760143433151,0.91052108,112720.0,112710.0,0.14517487]